bitfinex/quotes_ETHUSD_20220731
["timestamp","ask_amount","ask_price","bid_price","bid_amount"]
[1659288098634,3.3075,1708.1,1707.8,0.15]
[1659288100904,3.54661918,1708.0,1707.7,0.31526365]
[1659288101104,2.89804672,1707.9,1707.7,0.3]
[1659288101499,2.89804672,1707.9,1707.6,0.09612522]
[1659288101941,6.29334672,1708.0,1707.6,0.09612522]
[1659288102150,9.8399659,1708.0,1707.6,0.09612522]
[1659288102334,9.7899659,1708.0,1707.6,0.09612522]
[1659288102540,9.7899659,1708.0,1707.6,3.09612522]
[1659288102846,6.4446659,1707.9,1707.7,3.3]
[1659288103051,2.89804672,1707.9,1707.7,0.3]
[1659288103201,3.3453,1708.0,1707.6,3.39612522]
[1659288104004,6.89191918,1708.0,1707.6,3.39612522]
[1659288104406,3.3453,1708.0,1707.6,3.39612522]
[1659288105528,6.89191918,1708.0,1707.6,3.39612522]
[1659288105749,6.4446659,1707.9,1707.6,3.39612522]
[1659288106107,2.89804672,1707.9,1707.6,3.39612522]
[1659288108837,2.89804672,1707.9,1707.7,3.0]
[1659288109190,2.89804672,1707.9,1707.7,3.3]
[1659288109345,2.89804672,1707.9,1707.8,3.0]
[1659288109550,2.89804672,1707.9,1707.7,0.3]
[1659288109844,2.74804672,1707.9,1707.5,0.01526544]
[1659288110044,6.2946659,1707.9,1707.5,0.01526544]
[1659288111058,2.74804672,1707.9,1707.5,0.01526544]
[1659288111367,6.2946659,1707.9,1707.5,0.01526544]
[1659288111539,2.74804672,1707.9,1707.5,0.01526544]
[1659288111739,6.2946659,1707.9,1707.5,0.01526544]
[1659288112339,2.74804672,1707.9,1707.5,0.01526544]
[1659288112782,6.2946659,1707.9,1707.5,0.01526544]
[1659288113144,6.2946659,1707.9,1707.5,0.31526544]
[1659288113486,2.74804672,1707.9,1707.5,0.01526544]
[1659288113980,6.2946659,1707.9,1707.5,0.01526544]
[1659288114487,2.74804672,1707.9,1707.5,0.01526544]
[1659288114860,6.2946659,1707.9,1707.5,0.01526544]
[1659288115396,6.89191918,1708.0,1707.5,0.01526544]
[1659288115598,9.7899659,1708.0,1707.6,0.09612522]
[1659288115812,3.54661918,1707.9,1707.6,0.09612522]
[1659288116009,9.7899659,1708.0,1707.6,0.09612522]
[1659288117160,6.24334672,1708.0,1707.6,0.09612522]
[1659288117395,9.7899659,1708.0,1707.6,0.09612522]
[1659288117761,3.54661918,1707.9,1707.6,0.09612522]
[1659288117967,6.24334672,1708.0,1707.6,0.09612522]
[1659288118567,9.7899659,1708.0,1707.6,0.09612522]
[1659288118768,9.7899659,1708.0,1707.8,1.394]
[1659288118769,3.3453,1708.0,1707.8,1.394]
[1659288118994,3.3453,1708.0,1707.9,1.32512522]
[1659288119200,3.3453,1708.0,1707.9,4.32512522]
[1659288119616,14.62871918,1708.3,1707.9,4.32512522]
[1659288119782,2.89804672,1708.2,1707.9,4.32512522]
[1659288119987,3.54661918,1708.1,1707.9,3.0]
[1659288120208,2.89804672,1708.2,1707.9,3.0]
[1659288120209,6.4446659,1708.2,1707.9,3.0]
[1659288120377,2.89804672,1708.2,1707.7,3.3]
[1659288120973,2.89804672,1708.2,1707.8,0.15]
[1659288121173,2.89804672,1708.2,1707.8,0.24612522]
[1659288122185,2.89804672,1708.2,1707.8,0.09612522]
[1659288123320,17.53433585,1708.3,1707.8,0.09612522]
[1659288125718,17.53433585,1708.3,1707.8,0.39313282]
[1659288125889,2.89804672,1708.2,1707.8,0.09612522]
[1659288130323,2.89804672,1708.2,1707.8,3.09612522]
[1659288130626,2.89804672,1708.2,1707.8,0.09612522]
[1659288131755,2.89804672,1708.2,1707.8,2.08402692]
[1659288131756,2.89557979,1708.2,1707.8,2.08402692]
[1659288131913,2.89557979,1708.2,1707.8,1.79012522]
[1659288134311,2.89557979,1708.2,1707.8,1.64012522]
[1659288135162,2.89557979,1708.2,1707.8,0.39612522]
[1659288137448,2.89557979,1708.2,1707.8,0.6863175]
[1659288137643,2.94557979,1708.2,1707.8,0.6863175]
[1659288137827,2.89804672,1708.1,1707.8,0.6863175]
[1659288142629,2.89804672,1708.1,1707.8,0.6829171]
[1659288147726,14.3877,1708.3,1707.8,4.1829171]
[1659288147924,14.3877,1708.3,1708.0,0.15]
[1659288147925,3.3056,1708.3,1708.0,0.15]
[1659288148087,3.1036,1708.5,1708.2,0.15]
[1659288148466,8.2285,1708.6,1708.4,1.394]
[1659288148571,7.6566,1708.8,1708.4,1.394]
[1659288148774,2.89804672,1708.7,1708.4,1.394]
[1659288149615,2.89804672,1708.7,1708.4,1.244]
[1659288150222,2.89804672,1708.7,1708.3,0.09612522]
[1659288150392,2.89804672,1708.7,1708.1,3.3]
[1659288150597,6.44079925,1708.7,1708.1,3.3]
[1659288150909,2.89804672,1708.6,1708.1,3.3]
[1659288151103,3.54661918,1708.5,1707.9,0.05]
[1659288151311,3.54661918,1708.5,1707.8,5.13019228]
[1659288151312,5.86363571,1708.4,1707.8,5.13019228]
[1659288151521,6.4446659,1708.3,1707.8,5.13019228]
[1659288151674,6.4446659,1708.3,1707.8,5.2263175]
[1659288152104,6.4446659,1708.3,1707.8,2.2263175]
[1659288153350,2.89804672,1708.3,1707.8,2.2263175]
[1659288153533,6.4446659,1708.3,1707.8,2.2263175]
[1659288153740,2.89804672,1708.3,1707.8,2.2263175]
[1659288153937,6.4446659,1708.3,1707.8,2.2263175]
[1659288154516,2.89804672,1708.3,1707.8,2.2263175]
[1659288154927,6.4446659,1708.3,1707.8,2.2263175]
[1659288155133,2.89804672,1708.3,1707.8,2.2263175]
[1659288155555,9.8645659,1708.4,1707.9,3.5]
[1659288155759,9.8645659,1708.4,1708.0,3.39612522]
[1659288157372,3.54661918,1708.3,1708.0,3.39612522]
[1659288157570,9.8645659,1708.4,1708.0,3.39612522]
[1659288158378,6.31794672,1708.4,1708.0,3.39612522]
[1659288159699,9.8645659,1708.4,1708.0,3.39612522]
[1659288160088,9.8645659,1708.4,1708.0,0.09612522]
[1659288160713,6.31794672,1708.4,1708.0,1.34012522]
[1659288160896,6.31794672,1708.4,1708.0,1.64012522]
[1659288161208,6.31794672,1708.4,1708.0,4.64012522]
[1659288161412,9.8645659,1708.4,1708.0,4.64012522]
[1659288162075,6.31794672,1708.4,1708.0,4.64012522]
[1659288162260,9.8645659,1708.4,1708.0,4.64012522]
[1659288162462,6.31794672,1708.4,1708.0,4.64012522]
[1659288162899,9.8645659,1708.4,1708.0,4.64012522]
[1659288163063,9.86170499,1708.4,1708.0,4.64012522]
[1659288163266,9.86170499,1708.4,1708.1,3.0]
[1659288163689,9.86170499,1708.4,1708.0,4.64012522]
[1659288164093,6.31508581,1708.4,1708.0,1.64012522]
[1659288165015,9.86170499,1708.4,1708.0,1.64012522]
[1659288165196,6.31508581,1708.4,1708.0,1.54012522]
[1659288165393,9.86170499,1708.4,1708.0,1.54012522]
[1659288165776,6.31508581,1708.4,1708.0,4.54012522]
[1659288165988,3.54661918,1708.3,1708.0,4.54012522]
[1659288166175,9.86170499,1708.4,1708.0,4.54012522]
[1659288166404,9.86170499,1708.4,1708.0,1.54012522]
[1659288167608,2.89804672,1708.3,1708.0,0.09612522]
[1659288168177,9.86170499,1708.4,1708.0,0.09612522]
[1659288168679,6.31508581,1708.4,1708.0,0.09612522]
[1659288169112,3.41703909,1708.4,1708.0,0.09612522]
[1659288169405,6.96365827,1708.4,1708.0,0.09612522]
[1659288169723,3.41703909,1708.4,1708.0,0.09612522]
[1659288170212,6.96365827,1708.4,1708.0,0.09612522]
[1659288170412,3.41703909,1708.4,1708.0,0.09612522]
[1659288170720,6.96365827,1708.4,1708.0,0.09612522]
[1659288171408,3.41703909,1708.4,1708.0,0.09612522]
[1659288171982,6.96365827,1708.4,1708.0,0.09612522]
[1659288174438,3.41703909,1708.4,1708.0,0.09612522]
[1659288174598,6.96365827,1708.4,1708.0,0.09612522]
[1659288174924,6.4446659,1708.3,1707.8,1.53419228]
[1659288175124,6.4446659,1708.2,1707.8,0.29019228]
[1659288175326,6.4446659,1708.2,1707.6,3.2652]
[1659288175327,2.89804672,1708.2,1707.6,3.2652]
[1659288175624,2.89804672,1708.2,1707.5,10.3536]
[1659288175625,3.54661918,1708.1,1707.5,10.3536]
[1659288176183,6.4946659,1708.2,1707.6,3.0]
[1659288176419,3.54661918,1708.1,1707.6,3.0]
[1659288176984,3.4249,1708.1,1707.6,3.0]
[1659288177384,6.97151918,1708.1,1707.6,3.0]
[1659288178782,2.89804672,1708.0,1707.6,3.0]
[1659288180165,3.1644,1708.2,1707.7,1.24]
[1659288180339,6.01244672,1708.2,1707.7,1.33612522]
[1659288180546,6.01244672,1708.2,1707.7,1.63612522]
[1659288180547,9.5590659,1708.2,1707.7,1.63612522]
[1659288180755,6.01244672,1708.2,1707.7,1.63612522]
[1659288180966,9.5590659,1708.2,1707.7,1.63612522]
[1659288181268,9.5590659,1708.2,1707.8,0.15]
[1659288181475,6.01244672,1708.2,1707.8,0.15]
[1659288181624,9.5590659,1708.2,1707.8,0.15]
[1659288182400,6.01244672,1708.2,1707.8,0.15]
[1659288182732,9.5590659,1708.2,1707.8,0.15]
[1659288183159,6.01244672,1708.2,1707.8,0.15]
[1659288183358,6.01244672,1708.2,1707.7,1.63612522]
[1659288185640,6.01244672,1708.2,1707.7,1.80792523]
[1659288188969,6.00929788,1708.2,1707.7,1.80792523]
[1659288199030,6.00929788,1708.2,1707.9,1.39]
[1659288199358,2.89804672,1708.2,1707.9,1.69]
[1659288200356,2.89804672,1708.2,1707.9,1.54]
[1659288202259,2.89804672,1708.2,1707.9,1.24]
[1659288202663,2.84804672,1708.2,1707.9,1.24]
[1659288204139,2.84804672,1708.2,1707.9,1.54]
[1659288204760,2.84804672,1708.2,1707.9,1.82719572]
[1659288212819,3.3252,1708.3,1708.0,0.24612522]
[1659288213638,3.3252,1708.3,1708.1,1.24]
[1659288213826,3.3252,1708.3,1708.2,0.44612522]
[1659288214333,6.1108,1708.6,1708.2,0.44612522]
[1659288214334,3.2213,1708.6,1708.2,0.44612522]
[1659288214540,8.2993,1708.8,1708.6,0.15]
[1659288214541,14.7173,1708.8,1708.6,0.15]
[1659288214724,3.3478,1708.8,1708.7,1.244]
[1659288215440,11.72,1708.9,1708.8,0.35]
[1659288215641,7.8404,1709.1,1709.0,0.15]
[1659288216523,3.54661918,1709.1,1708.9,1.244]
[1659288216734,15.26661918,1709.2,1708.9,1.244]
[1659288216941,18.1646659,1709.2,1708.8,0.36102998]
[1659288217118,3.54661918,1709.1,1708.8,0.51102998]
[1659288217319,6.4446659,1709.2,1708.8,0.51102998]
[1659288217937,6.4446659,1709.1,1708.8,0.51102998]
[1659288218120,6.4446659,1709.0,1708.6,3.0]
[1659288218344,6.4446659,1708.9,1708.4,3.3]
[1659288218564,9.7630659,1708.9,1708.4,3.3]
[1659288219565,6.99325503,1708.8,1708.3,0.09612522]
[1659288219721,3.54661918,1708.7,1708.3,0.09612522]
[1659288220294,6.4446659,1708.7,1708.3,0.09612522]
[1659288220453,3.54661918,1708.6,1708.3,0.09612522]
[1659288221088,6.4446659,1708.7,1708.3,0.09612522]
[1659288221698,2.89804672,1708.7,1708.3,0.09612522]
[1659288221874,6.4446659,1708.7,1708.3,0.09612522]
[1659288222379,6.4446659,1708.7,1708.3,3.09612522]
[1659288222608,6.4446659,1708.7,1708.3,0.09612522]
[1659288223414,2.89804672,1708.7,1708.3,0.09612522]
[1659288223586,6.4446659,1708.7,1708.3,0.09612522]
[1659288224350,3.54661918,1708.6,1708.3,0.09612522]
[1659288224656,6.4446659,1708.7,1708.3,0.09612522]
[1659288225007,6.4446659,1708.7,1708.3,0.09229316]
[1659288227409,2.89804672,1708.7,1708.3,0.09229316]
[1659288230246,7.00068913,1708.8,1708.4,0.15]
[1659288230487,3.4691,1708.8,1708.7,1.594]
[1659288230643,11.72,1709.0,1708.8,0.15]
[1659288230841,3.54661918,1708.9,1708.5,3.0]
[1659288231041,5.86346216,1708.8,1708.5,3.0]
[1659288231242,0.05,1708.5,1708.2,0.2293203]
[1659288231479,2.90187878,1708.4,1707.9,0.33719572]
[1659288231803,6.4446659,1708.3,1707.7,3.216]
[1659288231970,6.4446659,1708.2,1707.5,6.7857]
[1659288232169,6.4446659,1708.2,1707.4,1.29]
[1659288232170,9.72589796,1708.1,1707.4,1.29]
[1659288232479,9.72589796,1708.1,1707.3,0.29626529]
[1659288232480,2.89804672,1707.8,1707.3,0.34626529]
[1659288232683,18.94417037,1707.7,1707.1,0.05]
[1659288232889,18.94417037,1707.7,1707.0,0.246]
[1659288232890,2.84543688,1707.3,1707.0,0.246]
[1659288233062,6.4446659,1707.2,1707.0,0.246]
[1659288233462,6.4446659,1707.2,1707.0,0.42473856]
[1659288233700,2.89804672,1707.1,1707.0,0.42473856]
[1659288234063,7.0,1707.0,1706.6,0.05]
[1659288234379,6.4946659,1707.1,1706.3,0.635]
[1659288234380,6.69325503,1706.9,1706.3,0.635]
[1659288234596,2.89804672,1706.8,1706.5,0.00228296]
[1659288235186,3.3707,1706.9,1706.5,1.39628296]
[1659288235391,3.3707,1706.9,1706.5,1.394]
[1659288235729,3.3707,1706.9,1706.5,4.694]
[1659288236017,3.3707,1706.9,1706.5,4.78629316]
[1659288236530,0.02253059,1706.7,1706.5,4.78629316]
[1659288237681,0.02253059,1706.7,1706.5,4.90119792]
[1659288239880,0.02253059,1706.7,1706.5,4.85119792]
[1659288240881,3.62312119,1706.9,1706.5,4.85119792]
[1659288245829,3.62312119,1706.9,1706.5,4.70119792]
[1659288247541,6.57116791,1706.9,1706.5,3.25]
[1659288247752,6.57116791,1706.9,1706.4,3.5]
[1659288247959,6.57116791,1706.9,1706.3,0.28745651]
[1659288247960,0.05,1706.7,1706.3,0.28745651]
[1659288248167,0.05,1706.5,1706.1,0.17132989]
[1659288248371,0.05,1706.5,1705.8,11.0454]
[1659288248372,6.4946659,1706.5,1705.8,11.0454]
[1659288248541,3.54661918,1706.4,1705.8,10.9954]
[1659288248735,3.54661918,1706.4,1705.8,7.4954]
[1659288248939,3.54661918,1706.4,1705.8,6.4954]
[1659288249172,3.54661918,1706.3,1705.8,6.4954]
[1659288249469,2.94804672,1706.2,1705.8,0.17457813]
[1659288249627,2.94804672,1706.2,1705.6,0.05]
[1659288249628,0.05,1706.0,1705.6,0.05]
[1659288249830,0.05,1706.0,1705.4,5.03559429]
[1659288249831,0.05,1705.8,1705.4,5.03559429]
[1659288250166,6.4446659,1706.0,1705.4,5.03559429]
[1659288250167,2.94804672,1706.0,1705.4,5.20699129]
[1659288250377,2.89804672,1705.9,1705.4,5.20699129]
[1659288251191,2.89804672,1705.9,1705.4,5.15699129]
[1659288252183,2.89804672,1705.9,1705.5,3.3]
[1659288252568,2.84804672,1705.9,1705.5,3.3]
[1659288252956,2.84804672,1705.9,1705.5,0.3]
[1659288253161,2.84804672,1705.9,1705.5,3.3]
[1659288253924,2.87261888,1705.9,1705.5,3.3]
[1659288254961,2.87261888,1705.9,1705.4,5.45699129]
[1659288255192,3.15046791,1705.8,1705.5,3.0]
[1659288255403,2.89804672,1705.7,1705.4,7.21699129]
[1659288255554,2.89804672,1705.7,1705.4,3.71699129]
[1659288255754,2.89804672,1705.7,1705.5,3.0]
[1659288255996,2.89804672,1705.7,1705.4,0.71699129]
[1659288256599,0.25242119,1705.8,1705.4,0.71699129]
[1659288256809,0.02457216,1705.9,1705.5,0.09229316]
[1659288256978,0.02457216,1705.9,1705.5,3.24229316]
[1659288257316,0.02457216,1705.9,1705.5,3.09229316]
[1659288257464,0.02457216,1705.9,1705.6,1.244]
[1659288257898,3.4546,1706.0,1705.6,1.544]
[1659288258089,6.35264672,1706.0,1705.6,1.544]
[1659288258289,6.35264672,1706.0,1705.6,1.494]
[1659288260428,6.35264672,1706.0,1705.4,0.41699129]
[1659288260429,9.06004672,1705.8,1705.4,0.41699129]
[1659288260637,3.5046,1706.0,1705.3,0.09229316]
[1659288260836,6.07944672,1705.9,1705.3,0.09229316]
[1659288260999,6.33186791,1705.9,1705.3,0.09229316]
[1659288261346,2.89804672,1705.8,1705.4,0.15]
[1659288261594,2.89804672,1705.8,1705.4,1.394]
[1659288261887,6.33186791,1705.9,1705.4,4.68930199]
[1659288262089,3.15046791,1705.9,1705.5,3.0]
[1659288262445,2.89804672,1705.9,1705.7,0.15]
[1659288262644,3.47918353,1706.0,1705.6,1.63629316]
[1659288263453,6.37723025,1706.0,1705.6,1.544]
[1659288263652,6.37723025,1706.0,1705.5,0.3]
[1659288263653,2.89804672,1705.9,1705.5,0.3]
[1659288263866,2.89804672,1705.9,1705.6,3.0]
[1659288264098,2.89804672,1705.9,1705.5,0.3]
[1659288264268,2.89804672,1705.9,1705.3,0.3]
[1659288264452,2.89804672,1705.9,1705.2,4.59]
[1659288264792,0.25242119,1705.8,1705.2,4.54]
[1659288264987,3.15046791,1705.8,1705.2,4.54]
[1659288265427,6.41203986,1705.7,1705.0,8.43359914]
[1659288265717,6.66446105,1705.6,1705.0,8.38359914]
[1659288265883,3.15046791,1705.6,1705.0,8.38359914]
[1659288266083,3.51399314,1705.5,1705.0,8.38359914]
[1659288266589,3.15046791,1705.6,1705.0,1.54009914]
[1659288266991,3.15046791,1705.6,1705.2,1.24]
[1659288267602,3.15046791,1705.6,1705.2,4.54]
[1659288267778,3.15046791,1705.6,1705.3,3.0]
[1659288268197,3.15046791,1705.6,1705.2,4.54]
[1659288268420,2.89804672,1705.6,1705.2,4.54]
[1659288268622,2.89804672,1705.6,1705.3,0.45]
[1659288269124,3.2905,1705.8,1705.3,0.45]
[1659288269125,10.28979314,1705.8,1705.3,0.45]
[1659288269307,10.28979314,1705.8,1705.3,3.65]
[1659288269516,3.51399314,1705.7,1705.4,3.0]
[1659288269890,3.51399314,1705.7,1705.3,0.3]
[1659288270082,3.51399314,1705.7,1705.2,4.54]
[1659288270083,6.41203986,1705.7,1705.2,4.54]
[1659288270283,6.43859875,1705.6,1705.2,4.54]
[1659288270486,2.92460561,1705.6,1705.2,4.54]
[1659288271383,2.92460561,1705.6,1705.2,4.83302155]
[1659288272324,0.02655889,1705.6,1705.2,4.53302155]
[1659288272491,0.02655889,1705.6,1705.2,1.53302155]
[1659288272703,2.92460561,1705.6,1705.2,1.53302155]
[1659288273689,2.92460561,1705.6,1705.2,1.83302155]
[1659288274319,0.02655889,1705.6,1705.2,1.83302155]
[1659288274631,2.92460561,1705.6,1705.2,1.83302155]
[1659288275335,6.43859875,1705.6,1705.2,1.83302155]
[1659288275540,0.02655889,1705.6,1705.2,1.83302155]
[1659288275840,0.25242119,1705.5,1705.2,1.83302155]
[1659288278339,0.02655889,1705.6,1705.4,0.15]
[1659288278900,0.02655889,1705.6,1705.2,1.83302155]
[1659288279719,0.02655889,1705.6,1705.4,0.15]
[1659288280556,0.02655889,1705.6,1705.2,1.83302155]
[1659288280918,0.06502152,1705.6,1705.3,0.24229316]
[1659288281730,0.06502152,1705.6,1705.5,0.35]
[1659288283629,0.06502152,1705.6,1705.2,1.83302155]
[1659288284119,0.06502152,1705.6,1705.3,0.15]
[1659288284612,0.06502152,1705.6,1705.5,0.35]
[1659288284970,0.06502152,1705.6,1705.4,1.394]
[1659288285205,0.06193309,1705.6,1705.5,0.35]
[1659288285471,0.06193309,1705.6,1705.5,6.7621826]
[1659288285706,0.06193309,1705.6,1705.5,9.85447576]
[1659288286427,0.06193309,1705.6,1705.5,6.95642904]
[1659288286774,0.02655889,1705.6,1705.5,6.95642904]
[1659288287744,0.02655889,1705.6,1705.5,6.60642904]
[1659288288502,0.02655889,1705.6,1705.5,3.10642904]
[1659288288702,0.02655889,1705.6,1705.5,7.24642904]
[1659288288936,0.02655889,1705.6,1705.5,3.74642904]
[1659288289116,0.02655889,1705.6,1705.5,3.64]
[1659288289340,0.02655889,1705.6,1705.5,0.64]
[1659288289548,0.02655889,1705.6,1705.4,4.544]
[1659288289770,0.02655889,1705.6,1705.4,4.7220965]
[1659288290737,0.02655889,1705.6,1705.5,3.0]
[1659288291116,3.64297322,1705.9,1705.4,1.7220965]
[1659288291317,6.54101994,1705.9,1705.4,1.7220965]
[1659288291974,0.02655889,1705.6,1705.4,1.7220965]
[1659288292625,3.90512755,1707.8,1705.4,1.7220965]
[1659288292626,2.8551,1706.8,1705.9,0.15]
[1659288292817,8.2859,1706.7,1706.4,1.24]
[1659288293021,9.5803,1706.8,1706.4,1.24]
[1659288293239,9.5803,1706.8,1706.6,1.244]
[1659288293648,3.3217,1706.8,1706.6,1.244]
[1659288293843,0.05,1707.1,1706.7,0.35]
[1659288294060,6.2586,1707.4,1707.1,0.15]
[1659288294061,9.6303,1707.4,1707.1,0.15]
[1659288294219,9.5803,1707.4,1707.1,0.15]
[1659288294650,2.89804672,1707.3,1706.8,1.444]
[1659288294962,3.5858,1707.3,1706.8,1.694]
[1659288295169,2.89804672,1707.2,1706.9,0.15]
[1659288297078,2.92183941,1707.2,1706.9,0.15]
[1659288298071,0.02379269,1707.2,1706.9,0.15]
[1659288299142,2.92183941,1707.2,1706.9,0.15]
[1659288299646,2.92183941,1707.2,1706.8,1.544]
[1659288300506,0.02379269,1707.2,1706.8,1.544]
[1659288301158,0.02379269,1707.2,1706.9,0.60961911]
[1659288301310,0.02379269,1707.2,1707.0,1.244]
[1659288301646,0.02379269,1707.2,1707.0,1.544]
[1659288302442,2.92183941,1707.2,1707.0,1.544]
[1659288302616,2.92183941,1707.2,1706.7,7.74]
[1659288302844,2.92183941,1707.2,1706.6,0.4671673]
[1659288302845,5.86606766,1707.1,1706.6,0.4671673]
[1659288303089,6.41203986,1707.0,1706.5,0.02733539]
[1659288303239,6.35124672,1706.9,1706.5,0.02733539]
[1659288303668,3.4532,1706.9,1706.5,0.02733539]
[1659288304377,3.51399314,1707.0,1706.5,3.32733539]
[1659288304580,0.02372104,1707.1,1706.8,1.24]
[1659288306686,0.02357769,1706.9,1706.8,1.24]
[1659288306836,0.02357769,1706.9,1706.7,0.75961911]
[1659288307598,0.02357769,1706.9,1706.7,0.3]
[1659288307796,0.02357769,1706.9,1706.6,1.539]
[1659288308475,0.02357769,1706.9,1706.6,0.3]
[1659288308776,0.02357769,1706.9,1706.5,3.02733539]
[1659288308777,0.02357769,1706.9,1706.5,3.32733539]
[1659288308980,2.92162441,1706.9,1706.5,3.32733539]
[1659288309496,6.41203986,1706.8,1706.5,0.02733539]
[1659288309641,6.41203986,1706.7,1706.5,0.02733539]
[1659288309845,2.89804672,1706.7,1706.5,0.02733539]
[1659288312917,6.43174672,1706.8,1706.5,0.02733539]
[1659288313092,3.5337,1706.8,1706.5,0.02733539]
[1659288314912,3.51399314,1706.7,1706.5,0.02733539]
[1659288315281,6.43174672,1706.8,1706.5,0.02733539]
[1659288316320,6.41203986,1706.7,1706.5,0.02733539]
[1659288316621,2.89804672,1706.7,1706.5,0.02733539]
[1659288317622,2.89407491,1706.7,1706.5,0.02733539]
[1659288317852,6.40806805,1706.7,1706.5,0.02733539]
[1659288318034,2.89407491,1706.7,1706.5,0.02733539]
[1659288318241,3.5337,1706.8,1706.5,0.37204974]
[1659288318441,3.5337,1706.8,1706.5,0.38088144]
[1659288321029,3.5337,1706.8,1706.5,0.68088144]
[1659288322952,3.5337,1706.8,1706.5,3.68088144]
[1659288323317,3.5337,1706.8,1706.6,3.0]
[1659288323520,3.5337,1706.8,1706.5,0.68088144]
[1659288323733,6.41203986,1706.7,1706.5,0.02733539]
[1659288323935,2.89804672,1706.7,1706.5,0.02733539]
[1659288330846,9.76214672,1706.8,1706.5,0.02733539]
[1659288331392,0.03924408,1706.7,1706.5,0.02733539]
[1659288332472,0.0628707,1706.7,1706.5,0.02733539]
[1659288333192,0.0628707,1706.7,1706.5,3.02733539]
[1659288333406,0.0628707,1706.7,1706.5,0.02733539]
[1659288333563,0.02362662,1706.7,1706.5,0.02733539]
[1659288334566,0.02362662,1706.7,1706.6,1.239]
[1659288336517,0.03924408,1706.7,1706.6,1.239]
[1659288338143,0.04244774,1706.7,1706.5,0.67204974]
[1659288339866,0.04244774,1706.7,1706.5,0.02733539]
[1659288341038,0.03933685,1706.7,1706.5,0.02733539]
[1659288341237,0.03933685,1706.7,1706.5,0.37204974]
[1659288341486,0.03933685,1706.7,1706.5,0.67204974]
[1659288341874,0.03933685,1706.7,1706.5,3.67204974]
[1659288342438,0.04794549,1706.7,1706.5,3.67204974]
[1659288342691,0.04794549,1706.7,1706.5,0.67204974]
[1659288349296,0.04794549,1706.7,1706.5,0.82204974]
[1659288349678,0.04794549,1706.7,1706.5,3.82204974]
[1659288351226,0.04794549,1706.7,1706.5,3.8193549]
[1659288351371,0.04794549,1706.7,1706.5,3.6693549]
[1659288351828,0.04794549,1706.7,1706.6,3.0]
[1659288352030,0.04794549,1706.7,1706.5,0.6693549]
[1659288358352,0.04794549,1706.7,1706.6,1.237]
[1659288360090,0.01890129,1706.7,1706.6,1.237]
[1659288361054,0.02851047,1706.7,1706.6,1.237]
[1659288363253,0.02102288,1706.7,1706.6,1.237]
[1659288367465,0.02851047,1706.7,1706.6,1.237]
[1659288370870,10.89804672,1706.7,1706.5,0.02733539]
[1659288371074,6.41203986,1706.6,1706.5,0.02733539]
[1659288371431,8.76203986,1706.6,1706.1,0.05]
[1659288371584,6.41203986,1706.5,1705.9,0.52002334]
[1659288371914,3.4683,1706.6,1705.7,0.05]
[1659288371915,6.41203986,1706.4,1705.7,0.05]
[1659288372116,6.41203986,1706.3,1705.6,1.298]
[1659288372415,6.41203986,1706.2,1705.6,1.248]
[1659288372613,0.05,1706.4,1705.5,10.3201]
[1659288372614,6.41203986,1706.1,1705.5,3.1502]
[1659288372774,6.41203986,1706.0,1705.4,0.1780965]
[1659288373096,3.51399314,1705.9,1705.3,3.48238436]
[1659288373307,3.51399314,1705.9,1705.4,0.17598436]
[1659288373780,2.89804672,1706.0,1705.4,0.34471435]
[1659288373988,2.89804672,1706.0,1705.7,1.237]
[1659288375073,2.89804672,1706.0,1705.8,0.17598436]
[1659288377321,6.41203986,1706.0,1705.8,0.17598436]
[1659288377481,2.89804672,1705.9,1705.8,0.17598436]
[1659288377687,6.36254672,1705.9,1705.8,0.17598436]
[1659288378780,6.36254672,1705.9,1705.8,0.12598436]
[1659288379785,6.36254672,1705.9,1705.7,0.46905186]
[1659288379989,2.89804672,1705.8,1705.5,1.248]
[1659288380190,2.89804672,1705.8,1705.5,1.548]
[1659288382027,2.89804672,1705.8,1705.4,0.17598436]
[1659288382191,3.51399314,1705.7,1705.2,0.47269386]
[1659288382392,2.89804672,1705.6,1705.1,1.248]
[1659288382904,2.89804672,1705.6,1705.1,1.71906634]
[1659288383211,6.28094672,1705.6,1705.1,4.71906634]
[1659288383536,6.28094672,1705.6,1705.1,5.19321595]
[1659288384403,2.89804672,1705.5,1705.1,5.19321595]
[1659288384606,6.28094672,1705.6,1705.1,5.19321595]
[1659288384813,6.28094672,1705.6,1705.2,0.34471435]
[1659288385342,2.89804672,1705.5,1705.2,0.52069871]
[1659288386503,2.89804672,1705.5,1705.2,0.47069871]
[1659288387932,2.89804672,1705.5,1705.2,0.17598436]
[1659288388297,2.94054717,1705.5,1705.2,0.17598436]
[1659288389191,0.04250045,1705.5,1705.2,0.17598436]
[1659288391205,0.04250045,1705.5,1705.4,0.15]
[1659288391514,0.04250045,1705.5,1705.4,0.1]
[1659288391716,0.04250045,1705.5,1705.4,0.27598436]
[1659288392020,0.04250045,1705.5,1705.4,0.22598436]
[1659288394223,0.05707607,1705.5,1705.4,0.22598436]
[1659288396341,0.05707607,1705.5,1705.4,0.05]
[1659288396719,0.05707607,1705.5,1705.3,1.84271435]
[1659288404499,0.05707607,1705.5,1705.3,1.548]
[1659288407302,6.89804672,1705.4,1705.3,1.248]
[1659288407517,6.89804672,1705.4,1705.1,3.46923159]
[1659288407518,10.41203986,1705.4,1705.1,0.46923159]
[1659288407813,3.51399314,1705.3,1704.9,1.237]
[1659288408031,3.56399313,1705.3,1704.9,1.237]
[1659288408240,3.56399313,1705.3,1704.9,1.52520587]
[1659288408448,3.56399313,1705.3,1704.9,1.508286]
[1659288408600,0.04999999,1705.3,1704.9,1.508286]
[1659288408797,0.04999999,1705.3,1704.9,1.68815247]
[1659288408798,6.46203985,1705.3,1704.9,1.68815247]
[1659288409049,2.89804672,1705.2,1704.9,1.68815247]
[1659288409230,2.89804672,1705.2,1704.9,1.98815247]
[1659288409433,2.89804672,1705.2,1704.9,5.28286682]
[1659288409799,2.94804671,1705.3,1704.9,5.28286682]
[1659288410000,0.04999999,1705.3,1705.1,1.248]
[1659288410242,6.92793712,1705.4,1705.1,1.248]
[1659288410402,6.97793711,1705.4,1705.1,1.248]
[1659288410603,3.51399314,1705.3,1705.1,1.248]
[1659288410804,0.01126251,1705.2,1705.1,1.248]
[1659288412008,0.05687379,1705.2,1705.1,1.248]
[1659288412209,0.05687379,1705.2,1705.1,1.59271435]
[1659288412534,0.04087379,1705.2,1705.1,5.26869871]